bitfinex/quotes_BTCUSD_20220202
["timestamp","ask_amount","ask_price","bid_price","bid_amount"]
[1643829550911,0.01,37499.0,37493.0,0.0534]
[1643829551807,0.00054304,37498.0,37493.0,0.0534]
[1643829552007,0.00054304,37498.0,37496.0,0.2800703]
[1643829552410,0.00054304,37498.0,37496.0,0.2798863]
[1643829552837,0.01,37499.0,37489.0,0.13805179]
[1643829553037,0.01054782,37499.0,37490.0,0.0534]
[1643829553242,0.10375828,37499.0,37492.0,0.24651297]
[1643829553438,0.01054782,37499.0,37493.0,0.120082]
[1643829553652,0.01054782,37499.0,37494.0,0.3543]
[1643829553839,0.01,37499.0,37495.0,0.1990933]
[1643829554038,0.01,37499.0,37496.0,0.3543]
[1643829554238,0.00057251,37498.0,37496.0,0.3543]
[1643829554639,0.00057251,37498.0,37497.0,0.75329208]
[1643829554842,0.00057251,37498.0,37497.0,0.45759208]
[1643829555038,0.00057251,37498.0,37497.0,0.16996108]
[1643829555239,0.01,37499.0,37495.0,0.05]
[1643829555439,0.0105725,37499.0,37496.0,0.066668]
[1643829555639,0.0105725,37499.0,37494.0,0.333343]
[1643829556038,0.0105725,37499.0,37494.0,0.183343]
[1643829556243,0.0105725,37499.0,37494.0,0.05]
[1643829556495,0.0105725,37499.0,37493.0,0.31448187]
[1643829556697,0.00059036,37498.0,37494.0,0.09714833]
[1643829557101,0.00059036,37498.0,37494.0,0.16382933]
[1643829557298,0.00059036,37498.0,37495.0,0.61065119]
[1643829557497,0.00059036,37498.0,37496.0,0.3543]
[1643829557898,0.00056828,37498.0,37496.0,0.3543]
[1643829558296,0.00056828,37498.0,37494.0,0.09714833]
[1643829558699,0.01,37499.0,37494.0,0.09714833]
[1643829559298,0.21754297,37496.0,37493.0,0.0534]
[1643829560098,0.01,37499.0,37493.0,0.0534]
[1643829560339,0.01,37499.0,37495.0,0.09952005]
[1643829561036,0.01,37499.0,37496.0,0.3543]
[1643829561238,0.01,37499.0,37497.0,0.05]
[1643829561443,0.01042015,37499.0,37497.0,0.05]
[1643829561837,0.01042015,37499.0,37495.0,0.14952005]
[1643829562041,0.01042015,37499.0,37496.0,0.3543]
[1643829562237,0.01042015,37499.0,37496.0,0.066671]
[1643829562437,0.01,37499.0,37496.0,0.133345]
[1643829562638,0.01042015,37499.0,37494.0,0.133342]
[1643829562838,0.2280419,37499.0,37494.0,0.133342]
[1643829563041,0.01042015,37499.0,37494.0,0.133342]
[1643829563439,0.01042015,37499.0,37495.0,0.10207725]
[1643829563639,0.01,37499.0,37495.0,0.10207725]
[1643829563841,0.00061831,37498.0,37494.0,0.133342]
[1643829564087,0.00061831,37498.0,37494.0,0.183342]
[1643829564486,0.00061831,37498.0,37495.0,0.54745106]
[1643829564685,0.00061831,37498.0,37496.0,0.3543]
[1643829564885,0.01,37499.0,37497.0,0.08733436]
[1643829565086,0.00061831,37498.0,37497.0,0.15400836]
[1643829565485,0.00061831,37498.0,37497.0,0.50830836]
[1643829565887,0.00061831,37498.0,37497.0,0.55830836]
[1643829566089,0.01,37499.0,37497.0,0.55830836]
[1643829566289,0.01058404,37499.0,37497.0,0.20400836]
[1643829566787,0.01058404,37499.0,37497.0,0.066674]
[1643829567589,0.01,37499.0,37497.0,0.066674]
[1643829567840,0.01,37499.0,37497.0,0.14692853]
[1643829569842,0.005,37499.0,37497.0,0.14692853]
[1643829570043,0.005,37499.0,37494.0,0.200017]
[1643829570245,0.005,37499.0,37494.0,0.133342]
[1643829570645,0.21989625,37503.0,37494.0,0.133342]
[1643829570842,0.21989625,37503.0,37492.0,0.66392428]
[1643829570843,0.21989625,37503.0,37492.0,0.53057928]
[1643829571044,0.00056789,37498.0,37497.0,0.07815086]
[1643829572090,0.21989625,37503.0,37492.0,0.53057928]
[1643829572290,0.21989625,37503.0,37492.0,0.58057928]
[1643829572489,0.21989625,37503.0,37492.0,0.29651297]
[1643829573390,0.00056909,37502.0,37494.0,0.09059112]
[1643829573592,0.00056909,37502.0,37493.0,0.06667662]
[1643829574394,0.00056909,37502.0,37491.0,0.32851086]
[1643829574592,0.23816828,37496.0,37491.0,0.133354]
[1643829574795,0.00056909,37502.0,37492.0,0.61107054]
[1643829574993,0.08420843,37500.0,37495.0,0.066677]
[1643829575840,0.24497587,37499.0,37495.0,0.066677]
[1643829576644,0.00054913,37502.0,37495.0,0.066677]
[1643829576843,0.26857314,37504.0,37496.0,0.3543]
[1643829577046,0.00058693,37502.0,37498.0,0.066671]
[1643829577443,0.02155662,37501.0,37498.0,0.066671]
[1643829577843,0.00058693,37502.0,37501.0,1.45]
[1643829578047,0.1309,37509.0,37503.0,0.066662]
[1643829578048,0.01,37509.0,37503.0,0.066662]
[1643829578245,0.01,37509.0,37504.0,0.60551553]
[1643829578443,0.01,37509.0,37504.0,0.0598]
[1643829578643,0.01,37509.0,37505.0,0.05]
[1643829578844,0.25495737,37509.0,37506.0,0.0598]
[1643829579297,0.01,37509.0,37506.0,0.36420945]
[1643829579505,0.01041972,37509.0,37507.0,0.4141]
[1643829579701,0.01041972,37509.0,37508.0,1.5543]
[1643829579897,0.01041972,37509.0,37508.0,0.0598]
[1643829580101,0.00741972,37509.0,37508.0,0.0598]
[1643829580296,0.23195962,37509.0,37508.0,0.1098]
[1643829580497,0.2315399,37509.0,37508.0,0.1098]
[1643829580697,0.2315399,37509.0,37508.0,0.0598]
[1643829580907,0.007,37509.0,37508.0,0.0598]
[1643829581900,0.27961457,37509.0,37508.0,0.0598]
[1643829582102,0.27961457,37509.0,37502.0,0.1848]
[1643829582304,0.27961457,37509.0,37502.0,0.0598]
[1643829582750,0.22943571,37505.0,37502.0,0.0598]
[1643829582951,0.22943571,37505.0,37500.0,0.02155662]
[1643829583151,0.22943571,37505.0,37501.0,0.3543]
[1643829583353,0.00058755,37507.0,37501.0,0.3543]
[1643829583552,0.00058755,37507.0,37500.0,0.066667]
[1643829583750,0.00058755,37507.0,37501.0,0.4043]
[1643829583952,0.00058755,37507.0,37502.0,0.3543]
[1643829584153,0.00058755,37507.0,37503.0,0.18870205]
[1643829584353,0.00058704,37505.0,37504.0,0.72284734]
[1643829584552,0.00058704,37505.0,37504.0,0.91229212]
[1643829584752,0.00058704,37505.0,37504.0,0.72284734]
[1643829584957,0.00058704,37505.0,37504.0,0.91386089]
[1643829585154,0.008,37509.0,37504.0,0.91386089]
[1643829585354,0.008,37509.0,37504.0,0.36854734]
[1643829585555,0.008,37509.0,37506.0,0.16262939]
[1643829586155,0.008,37509.0,37506.0,0.22928239]
[1643829586354,0.008,37509.0,37506.0,0.29593281]
[1643829586792,0.00858702,37509.0,37507.0,0.4141]
[1643829586991,0.00858702,37509.0,37508.0,0.7543]
[1643829587192,0.00858702,37509.0,37508.0,0.414]
[1643829587595,0.00858702,37509.0,37508.0,0.0598]
[1643829587993,0.008,37509.0,37508.0,0.0598]
[1643829588393,0.34569291,37509.0,37508.0,0.0598]
[1643829588997,0.24048408,37509.0,37501.0,0.257716]
[1643829589197,0.36025959,37506.0,37501.0,0.257716]
[1643829589400,0.3387584,37505.0,37499.0,0.15186297]
[1643829589997,0.26843261,37503.0,37499.0,0.15186297]
[1643829590446,0.00058942,37504.0,37499.0,0.0598]
[1643829590649,0.00058942,37504.0,37500.0,0.420625]
[1643829590949,0.00058942,37504.0,37499.0,0.066665]
[1643829590950,0.00058942,37504.0,37497.0,0.3654]
[1643829591144,0.00058942,37504.0,37497.0,0.4154]
[1643829591145,0.3387584,37503.0,37497.0,0.4154]
[1643829591345,0.58668647,37502.0,37497.0,0.05]
[1643829591546,0.58668647,37502.0,37491.0,0.10381638]
[1643829591547,0.09093541,37498.0,37491.0,0.10381638]
[1643829591745,0.92754452,37501.0,37491.0,0.10381638]
[1643829591746,0.23612704,37496.0,37491.0,0.10381638]
[1643829591947,0.20137948,37495.0,37491.0,0.10381638]
[1643829592144,0.2079593,37498.0,37492.0,0.353958]
[1643829592448,0.19136019,37500.0,37495.0,6e-05]
[1643829592647,0.19211755,37500.0,37495.0,6e-05]
[1643829593045,0.24256119,37501.0,37495.0,6e-05]
[1643829593446,0.43245207,37501.0,37495.0,0.06673225]
[1643829593752,0.3387584,37501.0,37498.0,0.06667]
[1643829593992,0.19914329,37503.0,37495.0,0.06673225]
[1643829593993,0.38806074,37496.0,37495.0,0.06673225]
[1643829594189,0.38806074,37496.0,37495.0,0.42069025]
[1643829594392,0.38806074,37496.0,37495.0,0.47069025]
[1643829594592,0.38806074,37496.0,37495.0,1.07069025]
[1643829594994,0.33716074,37496.0,37495.0,2.07069025]
[1643829595297,0.33716074,37496.0,37495.0,1.14076025]
[1643829595496,0.33716074,37496.0,37495.0,1.08736025]
[1643829595694,0.33716074,37496.0,37495.0,0.48736025]
[1643829596194,0.33716074,37496.0,37495.0,0.354018]
[1643829596393,0.54248175,37496.0,37495.0,6e-05]
[1643829596594,0.33716074,37496.0,37495.0,6e-05]
[1643829597397,0.33716074,37496.0,37495.0,0.354018]
[1643829598651,0.33716074,37496.0,37495.0,0.954018]
[1643829598850,0.33716074,37496.0,37495.0,0.354018]
[1643829599050,0.33716074,37496.0,37495.0,6e-05]
[1643829599251,0.33716074,37496.0,37495.0,0.354018]
[1643829599450,0.33716074,37496.0,37495.0,0.754018]
[1643829599851,0.33716074,37496.0,37495.0,0.804018]
[1643829600658,0.3372806,37496.0,37495.0,0.804018]
[1643829601926,0.3372806,37496.0,37495.0,0.05006]
[1643829602121,0.3272806,37496.0,37495.0,6e-05]
[1643829602522,0.3272806,37496.0,37495.0,0.35006]
[1643829602722,0.3272806,37496.0,37495.0,6e-05]
[1643829608447,0.60319555,37496.0,37495.0,6e-05]
[1643829609493,0.3272806,37496.0,37495.0,6e-05]
[1643829611798,0.52776667,37496.0,37495.0,6e-05]
[1643829611999,0.88172467,37496.0,37495.0,6e-05]
[1643829612199,1.27388307,37496.0,37495.0,6e-05]
[1643829612396,1.92388307,37496.0,37495.0,6e-05]
[1643829612598,1.98062108,37496.0,37495.0,6e-05]
[1643829612848,2.15070917,37496.0,37495.0,6e-05]
[1643829613043,2.15070917,37496.0,37480.0,0.72931851]
[1643829613044,7.889e-05,37494.0,37483.0,0.01902361]
[1643829613245,0.33899869,37491.0,37483.0,0.01902361]
[1643829613446,0.297352,37487.0,37480.0,0.34721851]
[1643829613644,0.22502344,37486.0,37480.0,0.34721851]
[1643829613844,0.23451664,37483.0,37480.0,0.34721851]
[1643829614343,0.18798799,37482.0,37480.0,0.34721851]
[1643829614644,0.23451664,37483.0,37480.0,0.34721851]
[1643829614845,0.18795979,37482.0,37480.0,0.34721851]
[1643829615045,0.1967955,37484.0,37480.0,0.34721851]
[1643829615246,0.297352,37487.0,37480.0,0.34721851]
[1643829615247,0.19982411,37486.0,37480.0,0.34721851]
[1643829616148,0.23457778,37484.0,37480.0,0.34721851]
[1643829617196,0.42146363,37484.0,37480.0,0.34721851]
[1643829617394,0.23457778,37484.0,37480.0,0.34721851]
[1643829617795,0.42112613,37484.0,37480.0,0.34721851]
[1643829618295,0.23457778,37484.0,37480.0,0.34721851]
[1643829619495,0.421115,37484.0,37480.0,0.34721851]
[1643829620097,0.23457778,37484.0,37480.0,0.34721851]
[1643829620347,0.00012794,37483.0,37480.0,0.34721851]
[1643829623550,0.00012794,37483.0,37480.0,0.41392151]
[1643829625292,0.00012794,37483.0,37480.0,0.34721851]
[1643829625492,0.1856107,37485.0,37480.0,0.34721851]
[1643829625693,0.28390311,37486.0,37480.0,0.34721851]
[1643829625894,0.18485415,37485.0,37480.0,0.34721851]
[1643829626295,0.28390311,37486.0,37480.0,0.34721851]
[1643829626494,0.28390311,37486.0,37480.0,0.41392151]
[1643829627096,0.28390311,37486.0,37480.0,0.34721851]
[1643829627941,0.18516779,37485.0,37480.0,0.34721851]
[1643829628143,0.28390311,37486.0,37480.0,0.34721851]
[1643829628343,0.00012807,37486.0,37480.0,0.34721851]
[1643829628545,0.00012807,37486.0,37481.0,0.05]
[1643829628745,0.00012807,37486.0,37482.0,0.353958]
[1643829628947,0.00012807,37486.0,37483.0,0.0534]
[1643829629145,0.00012807,37486.0,37484.0,0.353958]
[1643829629344,0.00012807,37486.0,37485.0,1.28975249]
[1643829629544,0.00012807,37486.0,37485.0,1.64371049]
[1643829630447,0.32716074,37496.0,37485.0,1.91379949]
[1643829630448,0.32728842,37496.0,37485.0,1.91379949]
[1643829630647,0.32728842,37496.0,37488.0,0.06668242]
[1643829630847,0.32728842,37496.0,37489.0,0.63442941]
[1643829631046,0.32728842,37496.0,37490.0,0.353958]
[1643829631250,0.32728842,37496.0,37492.0,0.29685318]
[1643829631497,0.32728842,37496.0,37493.0,0.0534]
[1643829632094,0.32728842,37496.0,37495.0,0.066676]
[1643829633094,0.32728842,37496.0,37495.0,1.00488041]
[1643829633495,0.32728842,37496.0,37495.0,0.816676]
[1643829633794,0.32728842,37496.0,37495.0,1.00759315]
[1643829633996,0.32728842,37496.0,37495.0,1.07426875]
[1643829634197,0.32728842,37496.0,37495.0,0.1333516]
[1643829634396,0.32728842,37496.0,37495.0,0.066676]
[1643829634597,0.57062406,37496.0,37494.0,0.2164506]
[1643829634797,0.32728842,37496.0,37494.0,0.0831036]
[1643829636251,0.32728842,37496.0,37494.0,0.1331036]
[1643829636452,0.32728842,37496.0,37494.0,0.2664546]
[1643829636655,0.32728842,37496.0,37495.0,1.216674]
[1643829638657,0.32728842,37496.0,37495.0,1.570632]
[1643829638857,0.32728842,37496.0,37495.0,1.69070138]
[1643829639091,0.32728842,37496.0,37495.0,2.14070138]
[1643829639492,0.32728842,37496.0,37495.0,2.24070138]
[1643829639691,0.32728842,37496.0,37495.0,2.58908643]
[1643829640090,0.32728842,37496.0,37495.0,2.13908643]
[1643829642295,0.32728842,37496.0,37495.0,0.18674338]
[1643829642494,0.32728842,37496.0,37495.0,0.0534]
[1643829643152,0.57918901,37496.0,37495.0,0.0534]
[1643829643752,0.32728842,37496.0,37495.0,0.0534]
[1643829644153,0.32728842,37496.0,37491.0,0.266703]
[1643829644357,0.32728842,37496.0,37493.0,0.15028354]
[1643829644753,0.32728842,37496.0,37493.0,0.21696454]
[1643829644952,0.5535117,37496.0,37493.0,0.21696454]
[1643829645153,0.32728842,37496.0,37493.0,0.21696454]
[1643829645552,0.32728842,37496.0,37493.0,0.28364354]
[1643829647107,0.32728842,37496.0,37493.0,0.35032254]
[1643829647699,0.32728842,37496.0,37493.0,0.40032254]
[1643829648097,0.32728842,37496.0,37493.0,0.34692254]
[1643829648499,0.32728842,37496.0,37494.0,0.2000217]
[1643829648899,0.32728842,37496.0,37495.0,0.066672]
[1643829649099,0.32728842,37496.0,37495.0,0.34605324]
[1643829649499,0.32728842,37496.0,37495.0,0.75001124]
[1643829649702,0.32728842,37496.0,37495.0,0.39605324]
[1643829649900,0.32728842,37496.0,37495.0,0.84605324]
[1643829650852,0.32728842,37496.0,37495.0,0.39605324]
[1643829651453,0.32728842,37496.0,37495.0,0.34605324]
[1643829651651,0.32728842,37496.0,37495.0,0.066672]
[1643829651853,0.32728842,37496.0,37495.0,0.366672]
[1643829652555,0.32728842,37496.0,37495.0,0.61683632]
[1643829652955,0.32728842,37496.0,37495.0,0.97079432]
[1643829653555,0.32728842,37496.0,37495.0,1.0374637]
[1643829653757,0.32728842,37496.0,37495.0,1.0874637]
[1643829656692,0.32728842,37496.0,37495.0,1.0374637]
[1643829657293,0.00012768,37496.0,37495.0,1.0374637]
[1643829657750,0.25505256,37501.0,37496.0,0.416672]
[1643829657951,0.00055972,37502.0,37497.0,0.066672]
[1643829658153,0.00055972,37502.0,37494.0,0.133345]
[1643829658554,0.18480271,37502.0,37494.0,0.133345]
[1643829658954,0.00055975,37502.0,37494.0,0.133345]
[1643829659155,0.27153458,37498.0,37494.0,0.133345]
[1643829659352,0.27153458,37498.0,37497.0,0.08539422]
[1643829659952,0.18841979,37502.0,37497.0,0.15207522]
[1643829660156,0.64886126,37503.0,37497.0,0.15207522]
[1643829660354,0.33877797,37505.0,37498.0,0.29342944]
[1643829660556,0.33877797,37506.0,37498.0,0.48777792]
[1643829660757,0.33877797,37508.0,37499.0,0.407358]
[1643829661054,0.00012276,37500.0,37499.0,0.17006467]
[1643829661255,0.00012276,37500.0,37499.0,0.52402267]
[1643829661696,0.00012276,37500.0,37499.0,0.65734267]
[1643829661897,0.00012276,37500.0,37499.0,1.80734267]
[1643829662496,0.00012276,37500.0,37499.0,1.87400467]
[1643829663098,0.00012276,37500.0,37499.0,1.82060467]
[1643829663297,0.00012276,37500.0,37499.0,1.81560467]
[1643829664001,0.21572074,37506.0,37501.0,0.13332113]
[1643829664199,0.008,37509.0,37503.0,0.19998441]
[1643829664399,0.008,37509.0,37504.0,0.15511669]
[1643829664599,0.008,37509.0,37500.0,0.18786359]
[1643829664799,0.008,37509.0,37501.0,0.1098]
[1643829665101,0.008,37509.0,37507.0,0.09091086]
[1643829665359,0.2202151,37508.0,37507.0,0.15756899]
[1643829665555,0.2202151,37508.0,37507.0,0.21736899]
[1643829666357,0.008,37509.0,37507.0,0.28402799]
[1643829666757,0.008,37509.0,37507.0,0.33402799]
[1643829666956,0.008,37509.0,37507.0,0.26736986]
[1643829667557,0.24594913,37508.0,37507.0,0.26736986]
[1643829668658,0.24594913,37508.0,37507.0,0.126459]
[1643829670099,0.5847271,37508.0,37507.0,0.0598]
[1643829670500,0.3473802,37509.0,37507.0,0.0598]
[1643829670698,0.008,37509.0,37507.0,0.0598]
[1643829671101,0.34738613,37509.0,37507.0,0.0598]
[1643829671497,0.28080542,37508.0,37507.0,0.0598]
[1643829671699,0.63476342,37508.0,37507.0,0.1590559]
[1643829671897,0.61958339,37508.0,37507.0,0.0598]
[1643829672099,0.28080542,37508.0,37507.0,0.0598]
[1643829672946,0.61958339,37508.0,37507.0,0.0598]
[1643829673647,0.33877797,37508.0,37507.0,0.0598]
[1643829673853,0.33877797,37508.0,37507.0,0.1098]
[1643829674058,0.00860816,37509.0,37508.0,1.383304]
[1643829674253,0.00860816,37509.0,37508.0,2.694162]
[1643829674648,0.00860816,37509.0,37508.0,2.98633478]
[1643829674649,0.00860835,37509.0,37508.0,2.98633478]
[1643829675249,0.00860835,37509.0,37508.0,1.58633478]
[1643829675452,0.008,37509.0,37508.0,1.58633478]
[1643829675850,0.008,37509.0,37508.0,1.294162]
[1643829676251,0.008,37509.0,37508.0,1.327509]
[1643829676499,0.008,37509.0,37508.0,1.427509]
[1643829676701,0.008,37509.0,37508.0,2.377509]
[1643829677299,0.35588914,37513.0,37509.0,1.5]
[1643829677501,0.33877797,37518.0,37511.0,1.6]
[1643829677700,0.34877797,37519.0,37517.0,0.466634]
[1643829677902,0.01,37519.0,37518.0,1.13521972]
[1643829678303,0.02107498,37521.0,37519.0,1.1]
[1643829678503,0.02107498,37521.0,37520.0,1.063758]
[1643829678705,0.02107498,37521.0,37520.0,1.23038]
[1643829678901,0.001,37523.0,37520.0,1.23038]
[1643829678902,0.001,37523.0,37521.0,0.7]
[1643829679102,0.001,37523.0,37522.0,1.063758]
[1643829679400,0.001,37523.0,37522.0,0.0598]
[1643829679602,0.34665176,37527.0,37523.0,1.25]
[1643829679603,0.11773378,37527.0,37523.0,1.25]
[1643829679806,0.0024474,37528.0,37523.0,1.25]
[1643829679807,0.0024474,37528.0,37526.0,0.7471]
[1643829680001,0.0024474,37528.0,37527.0,1.313758]
[1643829680266,0.0024474,37528.0,37527.0,0.413758]
[1643829680658,0.01,37529.0,37527.0,0.0598]
[1643829680857,0.01,37529.0,37527.0,0.126415]
[1643829681859,0.0097,37529.0,37527.0,0.126415]
[1643829682060,0.0097,37529.0,37527.0,0.0598]
[1643829682257,0.0097,37529.0,37526.0,0.64528765]
[1643829682460,0.0097,37529.0,37527.0,0.0598]
[1643829683058,0.0102926,37529.0,37527.0,0.0598]
[1643829683660,0.0102926,37529.0,37520.0,0.190833]
[1643829683859,0.40553356,37529.0,37520.0,0.190833]
[1643829684105,0.40553356,37529.0,37520.0,0.066633]
[1643829684307,0.39524096,37528.0,37520.0,0.066633]
[1643829684505,0.3193696,37524.0,37520.0,0.07895081]
[1643829684705,0.3193696,37524.0,37518.0,0.10494442]
[1643829685105,0.3193696,37524.0,37518.0,0.17157842]
[1643829685406,0.3193696,37524.0,37518.0,0.10494442]
[1643829685407,0.00060152,37523.0,37518.0,0.10494442]
[1643829686205,0.00060152,37523.0,37522.0,0.24117039]
[1643829686408,0.25720664,37529.0,37522.0,0.24117039]
[1643829686607,0.00240574,37528.0,37522.0,0.24117039]
[1643829687406,0.2384552,37526.0,37522.0,0.24117039]
[1643829687853,0.2384552,37526.0,37523.0,0.05]
[1643829688255,0.31921518,37526.0,37523.0,0.05]
[1643829688454,0.00038309,37527.0,37523.0,0.05]
[1643829688657,0.00038309,37527.0,37524.0,0.407258]
[1643829688854,0.0097,37529.0,37525.0,0.407258]
[1643829689053,0.00057268,37526.0,37525.0,0.5533]
[1643829689252,0.00057268,37526.0,37525.0,0.6033]
[1643829689853,0.23881851,37529.0,37525.0,0.6033]
[1643829690055,0.23881851,37529.0,37525.0,0.19006169]
[1643829690254,0.23881851,37529.0,37525.0,0.25667969]
[1643829690255,0.00057267,37527.0,37525.0,0.25667969]
[1643829690654,0.00057267,37527.0,37525.0,0.32330352]
[1643829691258,0.23881851,37529.0,37526.0,0.133249]
[1643829691501,0.00060271,37528.0,37526.0,0.133249]
[1643829691700,0.00060271,37528.0,37526.0,0.186549]
[1643829692303,0.23881851,37529.0,37526.0,0.186549]
[1643829692702,0.23941016,37529.0,37526.0,0.186549]
[1643829692901,0.01029165,37529.0,37526.0,0.186549]
[1643829694106,0.21795098,37529.0,37527.0,0.07471589]
[1643829694308,0.21795098,37529.0,37528.0,0.066623]
[1643829694505,0.21795098,37529.0,37526.0,0.133249]
[1643829694706,0.21735933,37529.0,37526.0,0.133249]
[1643829694906,0.21735933,37529.0,37525.0,0.133246]
[1643829695108,0.21735933,37529.0,37524.0,0.133238]
[1643829696045,0.21735933,37529.0,37522.0,0.0533]
[1643829696248,0.00025393,37528.0,37522.0,0.0533]
[1643829696449,0.00025393,37528.0,37522.0,0.11993]
[1643829696450,0.08240567,37526.0,37522.0,0.11993]
[1643829697250,0.08240567,37526.0,37522.0,0.06663]
[1643829697949,0.21735933,37529.0,37522.0,0.06663]
[1643829698146,0.49037748,37529.0,37522.0,0.06663]
[1643829698347,0.21735933,37529.0,37522.0,0.06663]
[1643829698548,0.0097,37529.0,37522.0,0.133256]
[1643829699200,0.08492927,37528.0,37523.0,0.0666248]
[1643829699403,0.08492927,37528.0,37523.0,0.1332478]
[1643829699601,0.08492927,37528.0,37524.0,0.05]
[1643829699803,0.08492927,37528.0,37525.0,0.066623]
[1643829702004,0.0097,37529.0,37525.0,0.066623]
[1643829704757,0.0097,37529.0,37521.0,0.08825733]
[1643829704959,0.0097,37529.0,37517.0,0.1964457]
[1643829705159,0.0097,37529.0,37518.0,0.433136]
[1643829705359,0.0097,37529.0,37522.0,0.066629]
[1643829705560,0.00013808,37528.0,37522.0,0.066629]
[1643829705761,0.00013808,37528.0,37523.0,0.066626]
[1643829706159,0.00013808,37528.0,37525.0,0.066623]
[1643829706359,0.00013808,37528.0,37525.0,0.133249]
[1643829706799,0.00013808,37528.0,37525.0,0.183249]
[1643829706996,0.00013808,37528.0,37525.0,0.249877]
[1643829707397,0.25771862,37528.0,37525.0,0.249877]
[1643829707598,0.00013808,37528.0,37525.0,0.249877]
[1643829708199,0.00013808,37528.0,37526.0,0.10189576]
[1643829708398,0.00013808,37528.0,37526.0,0.0666236]
[1643829711445,0.25426766,37527.0,37526.0,0.0666236]
[1643829711644,0.00013808,37528.0,37526.0,0.0666236]
[1643829712645,0.25735781,37528.0,37526.0,0.0666236]
[1643829714396,0.23598126,37527.0,37526.0,0.0666236]
[1643829714599,0.23566054,37527.0,37526.0,0.0666236]
[1643829714797,0.23566054,37527.0,37526.0,0.0665236]
[1643829715398,0.23579836,37527.0,37526.0,0.0665236]
[1643829715998,0.00013782,37527.0,37526.0,0.0665236]
[1643829716800,0.33844309,37527.0,37525.0,0.133251]
[1643829717203,0.33844309,37527.0,37525.0,0.19987742]
[1643829717866,0.33830527,37526.0,37525.0,0.24987742]
[1643829718767,0.39537878,37527.0,37525.0,0.19987742]
[1643829719369,0.39537878,37527.0,37525.0,0.24987742]
[1643829720774,0.39524096,37526.0,37525.0,0.24987742]
[1643829721496,0.39537878,37527.0,37525.0,0.24987742]
[1643829722098,0.39537878,37527.0,37526.0,0.066624]
[1643829722099,0.90013782,37527.0,37526.0,0.066624]
[1643829722401,1.81917087,37527.0,37525.0,0.066623]
[1643829722597,0.91903305,37526.0,37525.0,0.066623]
[1643829723300,0.91903305,37526.0,37523.0,0.133247]
[1643829723498,0.91903305,37525.0,37523.0,0.133247]
[1643829723697,0.91903305,37524.0,37523.0,0.133247]
[1643829724700,0.91903305,37524.0,37518.0,0.066641]
[1643829724904,0.33893541,37520.0,37518.0,0.066641]
[1643829725243,0.33893541,37521.0,37518.0,0.13328003]
[1643829725444,0.33893541,37521.0,37519.0,0.133285]
[1643829726446,0.001,37520.0,37519.0,0.133285]
[1643829727045,0.33993541,37520.0,37519.0,0.133285]
[1643829727245,0.001,37520.0,37519.0,0.133285]
[1643829728146,0.49104756,37520.0,37519.0,0.133285]
[1643829728347,0.82998297,37520.0,37519.0,0.133285]
[1643829728547,0.56316052,37520.0,37519.0,0.133285]
[1643829728847,0.5631595,37520.0,37519.0,0.133285]
[1643829730205,1.06488287,37520.0,37519.0,0.133285]
[1643829730404,1.64503493,37520.0,37518.0,0.06664]
[1643829730600,1.64503493,37520.0,37510.0,0.13329719]
[1643829730601,1.22511649,37519.0,37506.0,0.1205]
[1643829730801,0.33901096,37513.0,37506.0,0.1205]
[1643829731200,0.20038345,37512.0,37510.0,0.066659]
[1643829731400,0.20603004,37517.0,37510.0,0.066659]
[1643829731401,0.33901096,37514.0,37510.0,0.066659]
[1643829731601,0.33901096,37515.0,37510.0,0.13331146]
[1643829731999,0.33901096,37516.0,37510.0,0.13331146]
[1643829732199,0.33851096,37516.0,37510.0,0.13331146]
[1643829732400,0.33851096,37516.0,37511.0,0.066653]
[1643829732851,0.33851096,37516.0,37515.0,0.07543979]
[1643829733048,0.60154282,37519.0,37515.0,0.07543979]
[1643829733249,0.353958,37518.0,37514.0,0.066651]
[1643829733748,0.63580762,37518.0,37514.0,0.066651]
[1643829733951,0.19107624,37517.0,37514.0,0.066651]
[1643829734153,0.353958,37516.0,37514.0,0.066651]
[1643829735153,0.28184962,37518.0,37514.0,0.066651]
[1643829735356,0.00013387,37516.0,37514.0,0.066651]
[1643829736521,0.00013387,37516.0,37514.0,0.18329629]
[1643829736713,0.00013387,37516.0,37515.0,2.057258]
[1643829737314,0.02,37518.0,37516.0,1.25]
[1643829737315,0.01513387,37518.0,37516.0,1.25]
[1643829737516,0.01513387,37518.0,37517.0,0.903958]
[1643829737814,0.01513387,37518.0,37517.0,0.353958]
[1643829738414,0.01513387,37518.0,37516.0,0.18326283]
[1643829740656,0.01526414,37518.0,37516.0,0.18326283]
[1643829741457,0.01526414,37518.0,37516.0,0.066632]
[1643829743657,0.01526414,37518.0,37517.0,1.98039208]
[1643829743859,0.01526414,37518.0,37516.0,0.066632]
[1643829744325,0.29670519,37519.0,37516.0,0.066632]
[1643829745120,0.29670519,37519.0,37515.0,0.33316466]
[1643829745324,0.29670519,37519.0,37515.0,0.26652366]
[1643829745520,0.001,37520.0,37518.0,0.066642]
[1643829745720,0.001,37520.0,37519.0,0.09239413]
[1643829749755,0.001,37520.0,37519.0,1.44239413]
[1643829749956,0.39551278,37527.0,37521.0,0.13325]
[1643829750155,0.39551278,37528.0,37522.0,0.61352533]
[1643829750357,0.39551278,37528.0,37523.0,0.353958]
[1643829750552,0.6797774,37529.0,37524.0,0.0597]
[1643829750754,0.40742858,37529.0,37524.0,0.0597]
[1643829751500,0.40521278,37529.0,37525.0,0.07537207]
[1643829751695,0.40521278,37529.0,37525.0,0.31831768]
[1643829751895,0.40521278,37529.0,37526.0,0.133248]
[1643829752495,0.39551278,37527.0,37526.0,0.133248]
[1643829752695,0.56505419,37528.0,37526.0,0.133248]
[1643829752696,0.39551278,37528.0,37526.0,0.066624]
[1643829752897,0.39551278,37528.0,37526.0,0.199885]
[1643829754500,0.82794378,37527.0,37526.0,0.133261]
[1643829754698,0.82794378,37527.0,37522.0,0.133279]
[1643829754699,1.41114775,37527.0,37522.0,0.133279]
[1643829754898,0.39528128,37523.0,37522.0,0.133279]
[1643829755100,1.13433476,37523.0,37522.0,0.133279]
[1643829755361,1.13433476,37523.0,37514.0,0.133287]
[1643829755362,0.09206819,37522.0,37514.0,0.133287]
[1643829755561,1.30652439,37515.0,37508.0,0.13330252]
[1643829755764,0.33887038,37513.0,37505.0,0.133313]
[1643829755958,0.33887038,37513.0,37508.0,0.066657]
[1643829756279,0.33887038,37513.0,37510.0,0.01926158]
[1643829756458,0.353958,37512.0,37510.0,0.01926158]